Cogmind - Beta 10.2 @@@ ROGUE MODE // 2022.03.04 @ 04:08:11 Player: woegarden Result: Destroyed by S-10 Pest with Light Assault Rifle Performance ------------- Evolutions (1) 500 Regions Visited (3) 600 Robots Destroyed (19) 95 Value Destroyed (289) 289 Prototype IDs (0) 0 Alien Tech Used (0) 0 Bonus (4) 4 TOTAL SCORE: 1488 Bonus ------- High Alert Combat Kills 4 Cogmind --------- Core Integrity 0/400 Matter 280/300 Energy 96/125 System Corruption 0% Temperature Cool (9) Movement Treading (160) Location -9/Materials Parts ------- > --- POWER (1) -------- Light Ion Engine > --- PROPULSION (2) --- Light Treads Light Treads > --- UTILITY (2) ------ Large Storage Unit > --- WEAPON (4) ------- Heavy Hammer > --- INVENTORY (10) --- Light Ion Engine Light Treads Light Treads Weight Redist. System Signal Interpreter Light Assault Rifle Maul Peak State ------------ > --- POWER ------------ Light Ion Engine > --- PROPULSION ------- Aluminum Leg Aluminum Leg > --- UTILITY ---------- Large Storage Unit ECM Suite > --- WEAPON ----------- Flail Maul Maul Heavy Hammer > --- INVENTORY -------- Ion Engine Light Treads Light Treads EM Pulse Gun Light Assault Rifle Light Assault Rifle Flail Heavy Hammer [Rating: 14] Favorites ----------- Power Light Ion Engine Engine Light Ion Engine Propulsion Aluminum Leg Treads Light Treads Leg Aluminum Leg Utility ECM Suite Device ECM Suite Storage Large Storage Unit Weapon Maul Ballistic Gun Light Assault Rifle Impact Weapon Maul Build | -11 -10 -10 -9 ------- Run | Scr Mat Min Mat Slots Evolved 2 | . . . 2 Power . | . . . . Propulsion . | . . . . Utility . | . . . . Weapon 2 | . . . 2 Parts Attached 16 | . 5 . 11 Power 4 | . 1 . 3 Engine 4 | . 1 . 3 Core . | . . . . Reactor . | . . . . Propulsion 4 | . . . 4 Treads 4 | . . . 4 Leg . | . . . . Wheel . | . . . . Hover . | . . . . Flight . | . . . . Utility 2 | . 2 . . Device 1 | . 1 . . Storage 1 | . 1 . . Processor . | . . . . Hackware . | . . . . Protection . | . . . . Artifact . | . . . . Weapon 6 | . 2 . 4 Energy Gun . | . . . . Energy Cannon . | . . . . Ballistic Gun . | . . . . Ballistic Cannon . | . . . . Launcher . | . . . . Special Weapon . | . . . . Impact Weapon 6 | . 2 . 4 Slashing Weapon . | . . . . Piercing Weapon . | . . . . Special Melee Weapon . | . . . . Unidentified Prototypes . | . . . . Parts Lost 12 | . . . 12 Power 3 | . . . 3 Propulsion 4 | . . . 4 Utility 1 | . . . 1 Weapon 4 | . . . 4 Highest Loss Streak 7 | . . . 7 Average Slot Usage (%) 95 | . 90 100 95 Engine 11 | . 12 14 10 Treads 3 | . . . 7 Leg 20 | . 28 28 11 Device 11 | . 9 14 10 Storage 12 | . 14 14 11 Ballistic Gun 5 | . 22 . . Impact Weapon 28 | . 2 28 43 Naked Turns . | . . . . Heaviest Build 32 | 9 26 26 32 Greatest Support 40 | 20 20 20 40 Greatest Overweight (x) 8 | . 1 1 8 Average Overweight (x) . | . . 1 . Largest Inventory Capacity 10 | . 10 10 10 Average Capacity 9 | . 7 10 10 Most Carried 10 | . 10 10 10 Average Carried 8 | . 7 10 8 Final Capacity 10 | 6 10 10 10 Final Carried 10 | 6 10 10 7 Class Distribution -------------------- 100% | Mutant Dominant Class ---------------- Mutant | -10/Materials Mutant | -10/Mines Mutant | -9/Materials Resources | -11 -10 -10 -9 ----------- Run | Scr Mat Min Mat Matter Collected 336 | 200 11 25 100 Remotely . | . . . . Salvage Created 516 | . 86 25 405 Parts 29 | . 6 . 23 Haulers Intercepted 2 | . 1 . 1 Recyclers Shooed 1 | . 1 . . Parts Field Recycled . | . . . . Retrieved Matter . | . . . . Parts Self-Destructed . | . . . . Prevented . | . . . . Kills | -11 -10 -10 -9 ------- Run | Scr Mat Min Mat Combat Hostiles Destroyed 10 | . 2 . 8 Melee 4 | . . . 4 Guns 2 | . 2 . . Classes Destroyed 7 | . 2 1 4 Worker 3 | . . 1 2 Builder 1 | . . . 1 Hauler 2 | . 1 . 1 Watcher 3 | . . . 3 Swarmer 6 | . 2 . 4 Grunt 1 | . . . 1 Sentry 3 | . . . 3 Best Kill Streak 5 | . 3 1 5 Combat Bots Only 3 | . 2 . 3 Max Kills in Single Turn 1 | . 1 1 1 Gunslinging . | . . . . Exploded . | . . . . Melee 1 | . . . 1 Uniques/NPCs Destroyed . | . . . . Combat | -11 -10 -10 -9 -------- Run | Scr Mat Min Mat Damage Taken 1597 | . 65 25 1507 Core 401 | . . . 401 Absorbed by Shields . | . . . . Core Remaining (%) 100 | 100 . 100 . Volleys Fired 11 | . 11 . . Largest 1 | . 1 . . Hottest 20 | . 20 . . Shots Fired 11 | . 11 . . Gun 11 | . 11 . . Cannon . | . . . . Launcher . | . . . . Special . | . . . . Kinetic 11 | . 11 . . Thermal . | . . . . Explosive . | . . . . Electromagnetic . | . . . . Robot Hit Streak 4 | . 4 . . Robot Miss Streak 1 | . 1 . . Penetration Max . | . . . . Secondary Targets . | . . . . Shots Hit Robots 63 | . 9 2 52 Core Hits 15 | . 6 . 9 Critical Hits . | . . . . Critical Kills . | . . . . Critical Parts Destroyed . | . . . . Melee Attacks 68 | . . 2 66 Impact 68 | . . 2 66 Slashing . | . . . . Piercing . | . . . . Sneak Attacks 6 | . . 2 4 Combat Hostiles 1 | . . . 1 Follow-up Attacks 20 | . . . 20 Damage Inflicted 1635 | . 65 158 1412 Guns 65 | . 65 . . Cannons . | . . . . Explosions . | . . . . Melee 1569 | . . 158 1411 Ramming 1 | . . . 1 Kinetic 65 | . 65 . . Thermal . | . . . . Explosive . | . . . . Electromagnetic . | . . . . Impact 1569 | . . 158 1411 Slashing . | . . . . Piercing . | . . . . Highest Corruption . | . . . . Average Corruption . | . . . . Corruption Purged . | . . . . Overload Shots . | . . . . Overflow Damage 261 | . . 78 183 Projectiles . | . . . . Explosions . | . . . . Melee 261 | . . 78 183 Knockbacks 6 | . . 2 4 Impact 6 | . . 2 4 Kinetic . | . . . . Secondary . | . . . . Self-Inflicted Damage . | . . . . Shots . | . . . . Rammed 2 | . 1 . 1 Targets Rammed 2 | . 1 . 1 Kicked . | . . . . Crushed . | . . . . Highest Temperature . | . . . . Average Temperature . | . . . . Received Heat Transfer 294 | . . . 294 Siege Activations . | . . . . Robots Corrupted . | . . . . Combat Hostiles . | . . . . Parts Fried 7 | . . 2 5 Impact Corruptions 15 | . . 3 12 Robots Melted . | . . . . Combat Hostiles . | . . . . Parts Melted . | . . . . Heat Transferred . | . . . . Parts Sabotaged . | . . . . Parts Stolen . | . . . . Parts Stripped . | . . . . Power Chain Reactions . | . . . . Missiles Intercepted . | . . . . Alert | -11 -10 -10 -9 ------- Run | Scr Mat Min Mat Peak Influence 515 | . 72 32 515 Initial 27 | . . 27 12 Average 109 | . 54 30 191 Maximum Alert Level 2 | . . . 2 Low Security (%) 77 | . 100 100 49 Level 1 18 | . . . 41 Level 2 4 | . . . 9 Level 3 . | . . . . Level 4 . | . . . . Level 5 . | . . . . High Security . | . . . . Max Security . | . . . . Squads Dispatched 2 | . . . 2 Investigation 1 | . . . 1 Extermination . | . . . . Reinforcement 1 | . . . 1 Assault . | . . . . Garrison . | . . . . Intercept . | . . . . Construction Impeded . | . . . . Haulers Reinforced . | . . . . Stealth | -11 -10 -10 -9 --------- Run | Scr Mat Min Mat Distress Signals 6 | . . . 6 Communications Jammed . | . . . . Distress Signals . | . . . . Times Spotted 47 | . 5 3 39 Peak Tracking Total 10 | . 5 3 10 Tactical Retreats 12 | . 1 1 10 Traps | -11 -10 -10 -9 ------- Run | Scr Mat Min Mat Traps Triggered 2 | . 1 . 1 Indirectly . | . . . . Trap Hack Attempts . | . . . . Triggered . | . . . . Disarmed . | . . . . Reprogrammed . | . . . . Reused . | . . . . Traps Extracted . | . . . . Installed . | . . . . Triggered . | . . . . Machines | -11 -10 -10 -9 ---------- Run | Scr Mat Min Mat Machines Disabled . | . . . . Max in Single Turn . | . . . . Machines Sabotaged . | . . . . Garrisons Compromised . | . . . . Overloaded Fab Kills . | . . . . Fab Network Shutdowns . | . . . . Hacking | -11 -10 -10 -9 --------- Run | Scr Mat Min Mat Machines Accessed . | . . . . Terminals . | . . . . Fabricators . | . . . . Repair Stations . | . . . . Recycling Units . | . . . . Scanalyzers . | . . . . Garrison Access . | . . . . Total Hacks . | . . . . Successful . | . . . . Failed . | . . . . Catastrophic . | . . . . Database Lockouts . | . . . . Manual . | . . . . Terminals . | . . . . Fabricators . | . . . . Repair Stations . | . . . . Recycling Units . | . . . . Scanalyzers . | . . . . Garrison Access . | . . . . Terminal Hacks . | . . . . Fabricator Hacks . | . . . . Repair Station Hacks . | . . . . Recycling Unit Hacks . | . . . . Scanalyzer . | . . . . Garrison Access Hacks . | . . . . Unauthorized Hacks . | . . . . Terminals . | . . . . Fabricators . | . . . . Repair Stations . | . . . . Recycling Units . | . . . . Scanalyzers . | . . . . Garrison Access . | . . . . Data Cores Recovered . | . . . . Used . | . . . . Hacking Detections . | . . . . Full Trace Events . | . . . . Feedback Events . | . . . . Feedback Blocked . | . . . . Robot Schematics Acquired . | . . . . Robots Built . | . . . . Matter . | . . . . Time . | . . . . Total Robot Build Rating . | . . . . Part Schematics Acquired . | . . . . Parts Built . | . . . . Matter . | . . . . Time . | . . . . Total Part Build Rating . | . . . . Parts Repaired . | . . . . Time . | . . . . Parts Recycled . | . . . . Recycled Matter . | . . . . Retrieved Matter . | . . . . Retrieved Components . | . . . . Parts Scanalyzed . | . . . . Part Schematics Acquired . | . . . . Parts Damaged . | . . . . Bothacking | -11 -10 -10 -9 ------------ Run | Scr Mat Min Mat Used RIF Installer . | . . . . Robots Hacked . | . . . . Non-combat . | . . . . Combat . | . . . . Robot Hacks Applied . | . . . . Relay Couplers Released . | . . . . Robots Rewired . | . . . . Allies Hacked . | . . . . Hacks Repelled . | . . . . Allies | -11 -10 -10 -9 -------- Run | Scr Mat Min Mat Total Allies . | . . . . Largest Group . | . . . . Highest-Rated Group . | . . . . Highest-Rated Ally . | . . . . Total Orders . | . . . . Ally Attacks . | . . . . Total Damage . | . . . . Kills . | . . . . Allies Corrupted . | . . . . Allies Melted . | . . . . Intel | -11 -10 -10 -9 ------- Run | Scr Mat Min Mat Robot Analysis Total . | . . . . Derelict Logs Recovered 1 | . . 1 . Drone Launches . | . . . . Drone Recoveries . | . . . . Exploration | -11 -10 -10 -9 ------------- Run | Scr Mat Min Mat Turns Passed 892 | . 230 260 402 Spaces Moved 457 | 1 143 170 143 Core 1 | . . . 1 Treads 71 | . . . 71 Legs 385 | 1 143 170 71 Wheels . | . . . . Hover . | . . . . Flight . | . . . . Fastest Speed 120 | 120 120 150 150 Average Speed 147 | 120 130 150 163 Slowest Speed 450 | 120 150 150 450 Overloaded Moves . | . . . . Propulsion Burnouts . | . . . . Robots Hopped . | . . . . Cave-ins Triggered . | . . . . Exploration Rate (%) 24 | 2 34 40 20 Regions Visited 3 Branch Regions 1 Pre-discovered Areas 1 | . . 1 . Known Exits Taken . | . . . . Unknown Exits Taken 3 | 1 1 1 . Scrap Searched . | . . . . Spaces Dug . | . . . . Terrain Destroyed . | . . . . Melee . | . . . . Projectile . | . . . . AOE . | . . . . Terrain Rammed . | . . . . Walls Destroyed . | . . . . Machines Disabled . | . . . . Actions | -11 -10 -10 -9 --------- Run | Scr Mat Min Mat Total 574 | . 179 171 224 Wait 19 | . 8 . 11 Move 454 | . 142 169 143 Hop . | . . . . Pick Up 20 | . 8 . 12 Fast Attach 1 | . 1 . . Attach 13 | . 3 . 10 Detach 1 | . 1 . . Swap 2 | . 1 . 1 Drop 8 | . 3 . 5 Fire 11 | . 11 . . Melee 43 | . . 2 41 Ram . | . . . . Kick 1 | . 1 . . Crush 1 | . . . 1 Escape Stasis . | . . . . Rewire . | . . . . Trap . | . . . . Miscellaneous . | . . . . Route ------- -11/Scrapyard -10/Materials -10/Mines -9/Materials History --------- Turn | Location | Event 1 | -11/Scrapyard | Discovered new exit (range 0) 1 | -11/Scrapyard | Entered Materials 195 | -10/Materials | Discovered new exit (range 6) 231 | -10/Materials | Entered Mines 245 | -10/Mines | Met a Derelict bent on vengeance 297 | -10/Mines | Assembled infested the area 310 | -10/Mines | Build established: Mutant 465 | -10/Mines | Learned location of Storage (-7) 476 | -10/Mines | Discovered new exit (range 10) 491 | -10/Mines | Entered Materials 491 | -9/Materials | Evolved 2 slots: Weapon x2 807 | -9/Materials | Lost 3 parts (1p1n1w) 849 | -9/Materials | Core integrity fell below 50% 885 | -9/Materials | Core integrity fell below 20% 893 | -9/Materials | Destroyed by S-10 Pest with Light Assault Rifle Last Messages --------------- 00796_ S-10 Pest destroyed. 00801_ Acquired Lgt. Treads. 00813_ Acquired Lgt. Ion Engine. 00822_ Dropped Lgt. Treads. 00822_ Acquired Lgt. Treads. 00838_ Flail follow-up attack on S-10 Pest. 00853_ Lgt. Treads destroyed. 00858_ Destroyed Flight Unit. 00858_ S-10 Pest system corrupted by crushing effect. 00859_ S-10 Pest system terminally corrupted. 00859_ Flight Unit fried. 00875_ Destroyed Flight Unit. 00875_ S-10 Pest system corrupted by crushing effect. 00875_ Flail follow-up attack on S-10 Pest. 00876_ S-10 Pest system terminally corrupted. 00878_ Lgt. Ion Engine destroyed. 00878_ ECM Suite destroyed. 00881_ Lgt. Treads destroyed. 00884_ Flail destroyed. 00892_ Maul destroyed. Map ----- +----------------------------------------------------+ | ?????# ### !!### #??????????? | | ?????# #?#####?# ####???????? | | ???#####+###?????###% % #???????? | | ???# ######## ####!#???????? | | ???# # ###%###?????? | | ???# # # % = ##### | | ???# # [ # [ | | ???# # [== / T | | ???# # """ == # | | ???######## """ # ##### | | ??????????# """ ## ##?????# | | ??????????# ## #??????? | | ??????????#######/#### #??????? | | ???########### ## #??# #??????? | | ???# [[[ ## #??# ##?????? | | ???# [[ ## ### #?????? | | ???# [[ # #?????? | | ???# """ + #?????? | | ???# """ # #?????? | | ???# """ ## ### #?????? | | ???# ## #??##+###?????? | | ####+#####/###### #?????????????? | | # s # #????# #?????????????? | | # ssYs # #????# #?????????????? | | # #%###???+#?????????????? | | # g @# #??? ??????????????? | | # Yg% #??? ??????????????? | | # s # #??? ??????????????? | | # # + ?????????????????? | | # # # ???????????????? | | # # #? [?????????????? | | ########## #??####????????????? | | ?????????# #??????????????????? | | ?????????# #??????????????????? | | ?????????? #??????????????????? | | ?????????? #??????????????????? | | ?????????? #??????????????????? | | ?????????? #??????????????????? | | ?????????? #??????????????????? | | ?????????? #??????????????????? | | ?????????? ???????????????????? | | ????????????????????????????????? | | ????????????????????????????????? | | ????????????????????????????????? | | ????????????????????????????????? | | ????????????????????????????????? | | ????????????????????????????????? | | ????????????????????????????????? | | ????????????????????????????????? | | ????????????????????????????????? | +----------------------------------------------------+ Best States ------------- Heat Dissipation 28 Energy Generation 10 Energy Capacity 250 Matter Stores 300 Matter Capacity 300 Sight Range 16 Terrain Scan Density 10 ECM Strength 1 Evasion (%) 40 Recoil Reduction 2 Item Schematics ----------------- None Robot Schematics ------------------ None Fabricated ------------ Nothing Alien Tech Used ----------------- None Achievements -------------- None Challenges ------------ None Game ------ Seed ReactionSubatomicSink Manual? 0 Play Time 00:11:35 Cumulative 68.8 hours Start 2022.03.04 @ 03:58:37 End 2022.03.04 @ 04:08:11 Sessions 1 Manual Loads 0 Difficulty Rogue Special Mode None Game No. 91 Rogue 45 Adventurer 45 Explorer 1 Win Type - Total 0 Types 0/0/0/0/0/0/0/0/0 Lore% 25 Gallery% 45 Achievement% 31 Wizard Run 0 Options --------- ASCII 0 Keyboard 0 Movement Mouse Keybinds 0 Fullscreen 2 Font 16/Proggy Map View 76x50 Tactical HUD 1 Map Filters NONE Filters LOW_CONTRAST(13,24,33)|BRIGHTNESS(90)|SATURATION(87) Steam 1 RUN: 4862cc31-ddc2-457c-a883-3a287a0dfd82